fUSD/lending_fUSD_20240514
["ID","MTS","AMOUNT","RATE_DAILY","PERIOD"]
[326995266,1715692261642,-500.0,0.00012998,2]
[326995267,1715692261652,-500.0,0.00012998,2]
[326995268,1715692261662,-500.0,0.00012998,2]
[326995269,1715692261672,-296.1,0.00012998,2]
[326995270,1715692261682,-500.0,0.00012998,2]
[326995271,1715692261692,-668.06,0.00012998,2]
[326995272,1715692261702,-500.0,0.00012998,2]
[326995273,1715692261712,-668.06,0.00012998,2]
[326995274,1715692261726,-668.06,0.00012998,2]
[326995275,1715692261736,-151.0,0.00012998,2]
[326995276,1715692261746,-500.0,0.00012998,2]
[326995277,1715692261756,-567.24,0.00012998,2]
[326995278,1715692261767,-579.85,0.00012998,2]
[326995279,1715692261777,-579.85,0.00012998,2]
[326995280,1715692261787,-579.85,0.00012998,2]
[326995281,1715692261798,-151.0,0.00012998,2]
[326995282,1715692261808,-948.39,0.00012998,2]
[326995283,1715692261818,-948.39,0.00012998,2]
[326995284,1715692261828,-948.39,0.00012998,2]
[326995285,1715692261837,-3.21830187,0.00012998,2]
[326995286,1715692262678,-443.19735331,0.0001169,2]
[326995287,1715692262722,-2274.40550906,0.0001169,2]
[326995288,1715692262734,-2717.60286237,0.0001169,2]
[326995289,1715692262743,-698.5225954,0.0001169,2]
[326995290,1715692262763,-458.11552598,0.0001169,2]
[326995306,1715693431748,-613.40985546,0.00010108,2]
[326995307,1715693431760,-168.85039676,0.00010108,2]
[326995308,1715693431770,-430.60960332,0.00010109,2]
[326995309,1715693431782,-783.00959095,0.00010109,2]
[326995310,1715693431791,-3282.80859403,0.0001011,2]
[326995311,1715693431800,-882.90837981,0.0001011,2]
[326995312,1715693431809,-522.39610445,0.00010111,2]
[326995313,1715693431818,-248.62811859,0.00010114,2]
[326995314,1715693431827,-298.44340435,0.00010354,2]
[326995315,1715693431836,-650.29177738,0.00011,2]
[326995316,1715693431845,-673.805041,0.00011124,2]
[326995317,1715693431854,-150.03,0.0001117,2]
[326995318,1715693431863,-368.89801951,0.0001117,2]
[326995319,1715693431872,-368.89801951,0.0001117,2]
[326995320,1715693431882,-368.89801951,0.0001117,2]
[326995321,1715693431892,-368.89801951,0.0001117,2]
[326995322,1715693431901,-368.89801951,0.0001117,2]
[326995323,1715693431911,-368.89801951,0.0001117,2]
[326995324,1715693431920,-368.89801951,0.0001117,2]
[326995325,1715693431929,-368.89801951,0.0001117,2]
[326995326,1715693431939,-368.89801951,0.0001117,2]
[326995327,1715693431948,-368.89801951,0.0001117,2]
[326995328,1715693431958,-368.89801951,0.0001117,2]
[326995329,1715693431968,-368.89801951,0.0001117,2]
[326995330,1715693431977,-368.89801951,0.0001117,2]
[326995331,1715693431986,-368.89801951,0.0001117,2]
[326995332,1715693431995,-368.89801951,0.0001117,2]
[326995333,1715693432005,-368.89801951,0.0001117,2]
[326995334,1715693432014,-368.89801951,0.0001117,2]
[326995335,1715693432024,-368.89801951,0.0001117,2]
[326995336,1715693432034,-368.89801951,0.0001117,2]
[326995337,1715693432044,-368.89801951,0.0001117,2]
[326995338,1715693432053,-368.89801951,0.0001117,2]
[326995339,1715693432064,-368.89801951,0.0001117,2]
[326995340,1715693432074,-368.89801951,0.0001117,2]
[326995341,1715693432084,-368.89801951,0.0001117,2]
[326995342,1715693432094,-368.89801951,0.0001117,2]
[326995343,1715693432104,-368.89801951,0.0001117,2]
[326995344,1715693432114,-368.89801951,0.0001117,2]
[326995345,1715693432123,-368.89801951,0.0001117,2]
[326995346,1715693432133,-368.89801951,0.0001117,2]
[326995347,1715693432143,-368.89801951,0.0001117,2]
[326995348,1715693432154,-368.89801951,0.0001117,2]
[326995349,1715693432163,-368.89801951,0.0001117,2]
[326995350,1715693432173,-368.89801951,0.0001117,2]
[326995351,1715693432182,-368.89801951,0.0001117,2]
[326995352,1715693432192,-368.89801951,0.0001117,2]
[326995353,1715693432200,-368.89801951,0.0001117,2]
[326995355,1715693432210,-368.89801951,0.0001117,2]
[326995357,1715693432220,-368.89801951,0.0001117,2]
[326995358,1715693432230,-368.89801951,0.0001117,2]
[326995359,1715693432239,-368.89801951,0.0001117,2]
[326995360,1715693432248,-368.89801951,0.0001117,2]
[326995361,1715693432258,-368.89801951,0.0001117,2]
[326995362,1715693432268,-36.33266777,0.0001117,2]
[326995363,1715693432303,-332.56535174,0.0001117,2]
[326995364,1715693432313,-368.89801951,0.0001117,2]
[326995365,1715693432322,-336.4476172,0.0001117,2]
[326995366,1715693432333,-32.45040231,0.0001117,2]
[326995367,1715693432343,-368.89801951,0.0001117,2]
[326995368,1715693432352,-368.89801951,0.0001117,2]
[326995369,1715693432362,-254.18994721,0.0001117,2]
[326995370,1715693432373,-114.7080723,0.0001117,2]
[326995371,1715693432382,-368.89801951,0.0001117,2]
[326995372,1715693432393,-62.18460046,0.0001117,2]
[326995373,1715693432404,-306.71341905,0.0001117,2]
[326995374,1715693432413,-368.89801951,0.0001117,2]
[326995375,1715693432422,-368.89801951,0.0001117,2]
[326995376,1715693432431,-368.89801951,0.0001117,2]
[326995377,1715693432440,-368.89801951,0.0001117,2]
[326995378,1715693432449,-368.89801951,0.0001117,2]
[326995379,1715693432458,-368.89801951,0.0001117,2]
[326995380,1715693432468,-368.89801951,0.0001117,2]
[326995381,1715693432478,-368.89801951,0.0001117,2]
[326995382,1715693432487,-2411.77510121,0.0001118,2]
[326995383,1715693432536,-368.89801951,0.0001117,2]
[326995384,1715693432546,-599.10198049,0.0001118,2]
[326995385,1715693432558,-1054.71998718,0.0001118,2]
[326995386,1715693432569,-812.64718925,0.0001118,2]
[326995387,1715693432580,-837.82808505,0.0001118,2]
[326995388,1715693432591,-550.67700589,0.0001118,2]
[326995415,1715693438146,-368.89801951,0.0001117,2]
[326995416,1715693438156,-2.0663478,0.0001117,2]
[326995417,1715693438175,-366.83167171,0.0001117,2]
[326995418,1715693438184,-112.91150856,0.0001117,2]
[326995419,1715693438196,-255.98651095,0.0001117,2]
[326995420,1715693438207,-368.89801951,0.0001117,2]
[326995421,1715693438217,-368.89801951,0.0001117,2]
[326995422,1715693438227,-368.89801951,0.0001117,2]
[326995423,1715693438236,-368.89801951,0.0001117,2]
[326995424,1715693438246,-368.89801951,0.0001117,2]
[326995425,1715693438258,-368.89801951,0.0001117,2]
[326995426,1715693438267,-368.89801951,0.0001117,2]
[326995427,1715693438277,-368.89801951,0.0001117,2]
[326995428,1715693438288,-368.89801951,0.0001117,2]
[326995429,1715693438297,-368.89801951,0.0001117,2]
[326995430,1715693438306,-368.89801951,0.0001117,2]
[326995431,1715693438316,-368.89801951,0.0001117,2]
[326995432,1715693438326,-368.89801951,0.0001117,2]
[326995433,1715693438335,-368.89801951,0.0001117,2]
[326995434,1715693438344,-368.89801951,0.0001117,2]
[326995435,1715693438354,-368.89801951,0.0001117,2]
[326995436,1715693438363,-368.89801951,0.0001117,2]
[326995437,1715693438372,-368.89801951,0.0001117,2]
[326995438,1715693438381,-368.89801951,0.0001117,2]
[326995439,1715693438391,-368.89801951,0.0001117,2]
[326995440,1715693438405,-368.89801951,0.0001117,2]
[326995441,1715693438414,-368.89801951,0.0001117,2]
[326995442,1715693438424,-368.89801951,0.0001117,2]
[326995443,1715693438434,-368.89801951,0.0001117,2]
[326995444,1715693438444,-368.89801951,0.0001117,2]
[326995446,1715693438454,-368.89801951,0.0001117,2]
[326995448,1715693438464,-368.89801951,0.0001117,2]
[326995449,1715693438473,-368.89801951,0.0001117,2]
[326995451,1715693438483,-368.89801951,0.0001117,2]
[326995453,1715693438492,-368.89801951,0.0001117,2]
[326995455,1715693438501,-368.89801951,0.0001117,2]
[326995457,1715693438511,-368.89801951,0.0001117,2]
[326995458,1715693438520,-368.89801951,0.0001117,2]
[326995459,1715693438530,-140861.75134268,0.0001118,2]
[326995460,1715693438542,-141567.46416107,0.0001118,2]
[326995461,1715693438582,-368.89801951,0.0001117,2]
[326995462,1715693438591,-33094.35516365,0.0001118,2]
[326995463,1715693440487,-368.89801951,0.0001117,2]
[326995464,1715693440497,-368.89801951,0.0001117,2]
[326995465,1715693440506,-368.89801951,0.0001117,2]
[326995466,1715693440516,-209.66519627,0.0001117,2]
[326995467,1715693440528,-159.23282324,0.0001117,2]
[326995468,1715693440538,-348.7844448,0.0001118,2]
[326995469,1715693440550,-292.66499998,0.0001118,2]
[326995481,1715693442953,-9494.05877218,0.0001118,2]
[326995483,1715693442965,-352.53478603,0.0001118,2]
[326995493,1715693443178,-2387.91364451,0.0001118,2]
[326995494,1715693443271,-389071.03848044,0.0001118,2]
[326995507,1715693445783,-416.84737423,0.0001117,2]
[326995509,1715693445794,-416.84737423,0.0001117,2]
[326995510,1715693445805,-416.84737423,0.0001117,2]
[326995511,1715693445816,-109.78322054,0.00011178,2]
[326995513,1715693446163,-548.98299341,0.00011178,2]
[326995514,1715693446174,-451.6745636,0.00011179,2]
[326995515,1715693446184,-245.02688299,0.0001118,2]
[326995516,1715693446198,-607.71542608,0.0001118,2]
[326995517,1715693446211,-2207.23215483,0.0001118,2]
[326995518,1715693446225,-378.25350976,0.0001118,2]
[326995786,1715693717747,261.8468749,0.0003,120]
[326995789,1715693733668,261.8468745,0.0003,120]
[326995792,1715693748657,261.846874,0.0003,120]
[326995794,1715693761503,261.8468751,0.0003,120]
[326995802,1715693790619,261.8468745,0.0003,120]
[326995827,1715694568354,-335.70453274,9.958e-05,2]
[326995830,1715694632018,-320.59098922,9.937e-05,2]
[326995833,1715694632246,-122.60901078,9.937e-05,2]
[326995834,1715694632256,-217.25064636,9.955e-05,2]
[326995835,1715694632267,-262.92731062,9.956e-05,2]
[326995836,1715694632276,-347.21303224,9.965e-05,2]
[326995837,1715694632288,-435.04721998,9.965e-05,2]
[326995838,1715694632298,-149.44278002,0.00010007,2]
[326995839,1715694632310,-0.55721998,0.00010007,2]
[326995840,1715694632319,-1301.68831179,0.00010008,2]
[326995841,1715694632331,-598.11050968,0.00010008,2]
[326995885,1715694638183,-10095.20587853,0.00010008,2]
[326995886,1715694638193,-174.88,0.0001001,2]
[326995887,1715694638203,-152.51,0.00010179,2]
[326995888,1715694638213,-150.0,0.00010192,2]
[326995889,1715694638223,-250.0,0.000102,2]
[326995890,1715694638233,-248.37,0.00010219,2]
[326995891,1715694638242,-556.8,0.00010275,2]
[326995892,1715694638252,-250.0,0.00010366,2]
[326995893,1715694638262,-814.5,0.00010411,2]
[326995894,1715694638271,-639.32,0.00010411,2]
[326995895,1715694638281,-194.51,0.000105,2]
[326995896,1715694638290,-178.61,0.00010506,2]
[326995897,1715694638300,-324.11,0.00010542,2]
[326995898,1715694638310,-400.0,0.000108,3]
[326995899,1715694638319,-800.0,0.000109,3]
[326995900,1715694638329,-1563.60941232,0.00010941,2]
[326995901,1715694638338,-541.90981449,0.00011,2]
[326995902,1715694638348,-370.97,0.00011169,2]
[326995903,1715694638357,-150.02,0.0001117,2]
[326995904,1715694638366,-532.41909572,0.0001117,2]
[326995905,1715694638376,-532.41909572,0.0001117,2]
[326995906,1715694638385,-532.41909572,0.0001117,2]
[326995907,1715694638395,-532.41909572,0.0001117,2]
[326995908,1715694638404,-532.41909572,0.0001117,2]
[326995909,1715694638414,-532.41909572,0.0001117,2]
[326995910,1715694638425,-532.41909572,0.0001117,2]
[326995911,1715694638435,-532.41909572,0.0001117,2]
[326995912,1715694638446,-532.41909572,0.0001117,2]
[326995913,1715694638458,-532.41909572,0.0001117,2]
[326995914,1715694638468,-532.41909572,0.0001117,2]
[326995915,1715694638478,-532.41909572,0.0001117,2]
[326995916,1715694638487,-532.41909572,0.0001117,2]
[326995917,1715694638496,-532.41909572,0.0001117,2]
[326995918,1715694638507,-532.41909572,0.0001117,2]
[326995919,1715694638516,-532.41909572,0.0001117,2]
[326995920,1715694638527,-532.41909572,0.0001117,2]
[326995921,1715694638537,-532.41909572,0.0001117,2]
[326995922,1715694638546,-532.41909572,0.0001117,2]
[326995923,1715694638555,-532.41909572,0.0001117,2]
[326995924,1715694638565,-532.41909572,0.0001117,2]
[326995925,1715694638574,-532.41909572,0.0001117,2]
[326995926,1715694638584,-532.41909572,0.0001117,2]
[326995927,1715694638594,-532.41909572,0.0001117,2]
[326995928,1715694638603,-532.41909572,0.0001117,2]
[326995929,1715694638613,-532.41909572,0.0001117,2]
[326995930,1715694638623,-532.41909572,0.0001117,2]
[326995931,1715694638632,-532.41909572,0.0001117,2]
[326995932,1715694638642,-532.41909572,0.0001117,2]
[326995933,1715694638652,-532.41909572,0.0001117,2]
[326995934,1715694638662,-532.41909572,0.0001117,2]
[326995935,1715694638673,-532.41909572,0.0001117,2]
[326995936,1715694638683,-532.41909572,0.0001117,2]
[326995937,1715694638692,-532.41909572,0.0001117,2]
[326995938,1715694638702,-532.41909572,0.0001117,2]
[326995939,1715694638711,-532.41909572,0.0001117,2]
[326995940,1715694638721,-532.41909572,0.0001117,2]
[326995941,1715694638730,-532.41909572,0.0001117,2]
[326995942,1715694638740,-532.41909572,0.0001117,2]
[326995943,1715694638751,-532.41909572,0.0001117,2]
[326995944,1715694638761,-532.41909572,0.0001117,2]
[326995945,1715694638771,-532.41909572,0.0001117,2]
[326995946,1715694638780,-532.41909572,0.0001117,2]
[326995947,1715694638790,-532.41909572,0.0001117,2]
[326995948,1715694638799,-532.41909572,0.0001117,2]
[326995949,1715694638809,-532.41909572,0.0001117,2]
[326995950,1715694638819,-532.41909572,0.0001117,2]
[326995951,1715694638829,-532.41909572,0.0001117,2]
[326995952,1715694638840,-532.41909572,0.0001117,2]
[326995953,1715694638850,-532.41909572,0.0001117,2]
[326995954,1715694638859,-532.41909572,0.0001117,2]
[326995955,1715694638869,-532.41909572,0.0001117,2]
[326995956,1715694638879,-125.65073577,0.0001117,2]
[326995957,1715694638892,-406.76835995,0.0001117,2]
[326995958,1715694638903,-532.41909572,0.0001117,2]
[326995959,1715694638912,-532.41909572,0.0001117,2]
[326995960,1715694638928,-532.41909572,0.0001117,2]
[326995961,1715694638938,-532.41909572,0.0001117,2]
[326995962,1715694638947,-532.41909572,0.0001117,2]
[326995963,1715694638956,-532.41909572,0.0001117,2]
[326995964,1715694638966,-532.41909572,0.0001117,2]
[326995965,1715694638975,-532.41909572,0.0001117,2]
[326995966,1715694638985,-532.41909572,0.0001117,2]
[326995967,1715694638994,-17.45977857,0.0001117,2]
[326995968,1715694639031,-514.95931715,0.0001117,2]
[326995969,1715694639041,-532.41909572,0.0001117,2]
[326995970,1715694639051,-532.41909572,0.0001117,2]
[326995971,1715694639061,-532.41909572,0.0001117,2]
[326995972,1715694639071,-532.41909572,0.0001117,2]
[326995973,1715694639080,-532.41909572,0.0001117,2]
[326995974,1715694639090,-532.41909572,0.0001117,2]
[326995975,1715694639100,-532.41909572,0.0001117,2]
[326995976,1715694639109,-532.41909572,0.0001117,2]
[326995977,1715694639119,-532.41909572,0.0001117,2]
[326995978,1715694639128,-532.41909572,0.0001117,2]
[326995979,1715694639138,-532.41909572,0.0001117,2]
[326995980,1715694639147,-532.41909572,0.0001117,2]
[326995981,1715694639156,-532.41909572,0.0001117,2]
[326995982,1715694639166,-532.41909572,0.0001117,2]
[326995983,1715694639180,-532.41909572,0.0001117,2]
[326995984,1715694639190,-532.41909572,0.0001117,2]
[326995985,1715694639200,-532.41909572,0.0001117,2]
[326995986,1715694639209,-532.41909572,0.0001117,2]
[326995987,1715694639218,-532.41909572,0.0001117,2]
[326995988,1715694639227,-532.41909572,0.0001117,2]
[326995989,1715694639237,-788.94409382,0.00011178,2]
[326995990,1715694639247,-341.88735122,0.00011178,2]
[326995991,1715694639257,-515.84116148,0.00011178,2]
[326995992,1715694639267,-868.95,0.00011178,2]
[326995993,1715694639277,-868.95,0.00011178,2]
[326995994,1715694639286,-598.41,0.00011178,2]
[326995995,1715694639296,-443.2,0.00011179,2]
[326995996,1715694639307,-521.42581906,0.00011179,2]
[326995997,1715694639316,-1211.53612828,0.00011179,2]
[326995998,1715694639326,-21411.38578128,0.00011179,2]
[326995999,1715694639336,-136156.66584039,0.0001118,2]
[326996000,1715694639348,-48593.68028126,0.0001118,2]
[326996001,1715694639361,-138345.82715357,0.0001118,2]
[326996002,1715694639373,-50000.0,0.0001118,2]
[326996003,1715694640088,-532.41909572,0.0001117,2]
[326996006,1715694640099,-532.41909572,0.0001117,2]
[326996009,1715694640109,-532.41909572,0.0001117,2]
[326996012,1715694640119,-532.41909572,0.0001117,2]
[326996013,1715694640129,-532.41909572,0.0001117,2]
[326996014,1715694640139,-240.80452208,0.0001117,2]
[326996015,1715694640294,-291.61457364,0.0001117,2]
[326996016,1715694640305,-532.41909572,0.0001117,2]
[326996017,1715694640316,-532.41909572,0.0001117,2]
[326996018,1715694640326,-532.41909572,0.0001117,2]
[326996019,1715694640336,-375.01129442,0.0001117,2]
[326996020,1715694640347,-157.4078013,0.0001117,2]
[326996021,1715694640357,-3771.27107122,0.0001118,2]
[326996022,1715694640372,-2222.0873454,0.0001118,2]
[326996023,1715694640479,-509.21057936,0.0001117,2]
[326996116,1715694643156,-23.20851636,0.0001117,2]
[326996117,1715694643166,-532.41909572,0.0001117,2]
[326996118,1715694643177,-532.41909572,0.0001117,2]
[326996119,1715694643186,-532.41909572,0.0001117,2]
[326996120,1715694643195,-532.41909572,0.0001117,2]
[326996121,1715694643204,-532.41909572,0.0001117,2]
[326996122,1715694643213,-532.41909572,0.0001117,2]
[326996123,1715694643223,-529742.82810889,0.0001118,2]
[326996124,1715694643232,-2000.0,0.0001118,2]
[326996125,1715694643241,-200.0,0.0001118,2]
[326996126,1715694643251,-389071.03848044,0.0001118,2]
[326996127,1715694643260,-2858.85064,0.0001118,2]
[326996128,1715694643270,-2000.0,0.00011292,2]
[326996129,1715694643280,-200.0,0.00011292,2]
[326996130,1715694643289,-868.95,0.00011341,2]
[326996131,1715694643298,-2000.0,0.00011405,2]
[326996132,1715694643308,-200.0,0.00011405,2]
[326996133,1715694643318,-2000.0,0.00011519,2]
[326996134,1715694643327,-200.0,0.00011519,2]
[326996135,1715694643337,-868.95,0.00011541,2]
[326996136,1715694643347,-556.8,0.00011559,2]
[326996137,1715694643356,-2000.0,0.00011634,2]
[326996138,1715694643366,-200.0,0.00011634,2]
[326996139,1715694643375,-183.7,0.00011646,2]
[326996140,1715694643385,-176.21,0.00011735,2]
[326996141,1715694643396,-830.16,0.00011841,2]
[326996142,1715694643406,-1200.0,0.000121,4]
[326996143,1715694643416,-150.81,0.00012137,2]
[326996144,1715694643427,-1600.0,0.000122,4]
[326996145,1715694643437,-2000.0,0.000123,4]
[326996146,1715694643448,-175.271043,0.00012358,2]
[326996147,1715694643459,-241.404642,0.00012358,2]
[326996148,1715694643469,-176.02769,0.00012358,2]
[326996149,1715694643478,-220.770376,0.00012358,2]
[326996150,1715694643488,-400.0,0.000124,4]
[326996151,1715694643498,-443.2,0.00012421,2]
[326996152,1715694643507,-211.32308007,0.000125,2]
[326996153,1715694643517,-1000.0,0.000125,2]
[326996154,1715694643527,-400.0,0.000125,4]
[326996155,1715694643536,-241.404642,0.00012513,2]
[326996156,1715694643545,-1322.0,0.000126,2]
[326996157,1715694643555,-400.0,0.000126,4]
[326996158,1715694643565,-241.404642,0.00012667,2]
[326996159,1715694643574,-400.0,0.000127,4]
[326996160,1715694643583,-12647.87132177,0.0001275,2]
[326996161,1715694643592,-173.13322766,0.00012776,2]
[326996162,1715694643601,-600.0,0.000128,4]
[326996163,1715694643610,-298.745,0.00012805,2]
[326996164,1715694643620,-203.598,0.00012805,2]
[326996165,1715694643629,-241.404642,0.00012822,2]
[326996166,1715694643639,-556.8,0.00012844,2]
[326996167,1715694643649,-168.5723967,0.00012868,2]
[326996168,1715694643659,-1270.65814986,0.00012874,2]
[326996169,1715694643668,-460.37833859,0.00012875,2]
[326996170,1715694643679,-584.75766501,0.00012875,2]
[326996171,1715694643689,-155.0,0.00012875,2]
[326996172,1715694643698,-500.0,0.00012876,2]
[326996173,1715694643707,-500.0,0.00012876,2]
[326996174,1715694643717,-502.75333153,0.00012876,2]
[326996175,1715694643726,-500.0,0.00012876,2]
[326996176,1715694643736,-500.0,0.00012876,2]
[326996177,1715694643745,-500.0,0.00012876,2]
[326996178,1715694643754,-475.62,0.00012876,2]
[326996179,1715694643764,-500.0,0.00012876,2]
[326996180,1715694643775,-505.69286932,0.00012876,2]
[326996181,1715694643785,-507.12427216,0.00012876,2]
[326996182,1715694643795,-500.0,0.00012876,2]
[326996183,1715694643804,-505.7146244,0.00012876,2]
[326996184,1715694643813,-500.0,0.00012876,2]
[326996185,1715694643823,-500.0,0.00012876,2]
[326996186,1715694643832,-500.0,0.00012876,2]
[326996187,1715694643841,-503.67431841,0.00012876,2]
[326996188,1715694643850,-500.0,0.00012876,2]
[326996189,1715694643859,-500.0,0.00012876,2]
[326996190,1715694643868,-500.0,0.00012876,2]
[326996191,1715694643877,-500.0,0.00012876,2]
[326996192,1715694643887,-500.0,0.00012876,2]
[326996193,1715694643896,-614.06,0.00012876,2]
[326996194,1715694643905,-500.0,0.00012876,2]
[326996195,1715694643915,-500.0,0.00012876,2]
[326996196,1715694643926,-500.0,0.00012876,2]
[326996197,1715694643935,-500.0,0.00012876,2]
[326996198,1715694643943,-500.0,0.00012876,2]
[326996199,1715694643952,-500.0,0.00012876,2]
[326996200,1715694643962,-500.0,0.00012876,2]
[326996201,1715694643971,-269.68,0.00012876,2]
[326996202,1715694643980,-500.0,0.00012876,2]
[326996203,1715694643989,-500.0,0.00012876,2]
[326996204,1715694643999,-500.0,0.00012876,2]
[326996205,1715694644008,-317.16,0.00012876,2]
[326996206,1715694644017,-704.09,0.00012876,2]
[326996207,1715694644026,-704.09,0.00012876,2]
[326996208,1715694644035,-704.09,0.00012876,2]
[326996209,1715694644044,-704.09,0.00012876,2]
[326996210,1715694644053,-704.09,0.00012876,2]
[326996211,1715694644063,-704.09,0.00012876,2]
[326996212,1715694644072,-530.97,0.00012876,2]
[326996213,1715694644081,-395.75,0.00012876,2]
[326996214,1715694644091,-500.0,0.00012876,2]
[326996215,1715694644100,-500.0,0.00012876,2]
[326996216,1715694644296,-500.0,0.00012876,2]
[326996217,1715694644308,-500.0,0.00012876,2]
[326996218,1715694644318,-500.0,0.00012876,2]
[326996219,1715694644327,-500.0,0.00012876,2]
[326996220,1715694644336,-538.64,0.00012876,2]
[326996221,1715694644346,-500.0,0.00012876,2]
[326996222,1715694644355,-500.0,0.00012876,2]
[326996223,1715694644364,-500.0,0.00012876,2]
[326996224,1715694644373,-500.0,0.00012876,2]
[326996225,1715694644383,-319.62,0.00012876,2]
[326996226,1715694644393,-500.0,0.00012876,2]
[326996227,1715694644402,-500.0,0.00012876,2]
[326996228,1715694644412,-500.0,0.00012876,2]
[326996229,1715694644421,-500.0,0.00012876,2]
[326996230,1715694644432,-500.0,0.00012876,2]
[326996231,1715694644441,-500.0,0.00012876,2]
[326996232,1715694644455,-500.0,0.00012876,2]
[326996233,1715694644464,-500.0,0.00012876,2]
[326996234,1715694644473,-500.0,0.00012876,2]
[326996235,1715694644482,-500.0,0.00012876,2]
[326996236,1715694644492,-500.0,0.00012876,2]
[326996237,1715694644502,-500.0,0.00012876,2]
[326996238,1715694644511,-500.0,0.00012876,2]
[326996239,1715694644520,-500.0,0.00012876,2]
[326996240,1715694644530,-500.0,0.00012876,2]
[326996241,1715694644539,-334.53,0.00012876,2]
[326996242,1715694644548,-500.0,0.00012876,2]
[326996243,1715694644558,-500.0,0.00012876,2]
[326996244,1715694644567,-500.0,0.00012876,2]
[326996245,1715694644577,-500.0,0.00012876,2]
[326996246,1715694644586,-500.0,0.00012876,2]
[326996247,1715694644595,-500.0,0.00012876,2]
[326996248,1715694644604,-150.0,0.00012876,2]
[326996249,1715694644613,-150.0,0.00012876,2]
[326996250,1715694644622,-150.0,0.00012876,2]
[326996251,1715694644632,-150.0,0.00012876,2]
[326996252,1715694644641,-150.0,0.00012876,2]
[326996253,1715694644650,-150.0,0.00012876,2]
[326996254,1715694644660,-500.0,0.00012876,2]
[326996255,1715694644669,-500.0,0.00012876,2]
[326996256,1715694644681,-500.0,0.00012876,2]
[326996257,1715694644690,-500.0,0.00012876,2]
[326996258,1715694644699,-500.0,0.00012876,2]
[326996259,1715694644709,-500.0,0.00012876,2]
[326996260,1715694644718,-500.0,0.00012876,2]
[326996261,1715694644727,-500.0,0.00012876,2]
[326996262,1715694644737,-500.0,0.00012876,2]
[326996263,1715694644746,-500.0,0.00012876,2]
[326996264,1715694644756,-500.0,0.00012876,2]
[326996265,1715694644765,-500.0,0.00012876,2]
[326996266,1715694644775,-500.0,0.00012876,2]
[326996267,1715694644785,-500.0,0.00012876,2]
[326996268,1715694644794,-500.0,0.00012876,2]
[326996269,1715694644803,-500.0,0.00012876,2]
[326996270,1715694644813,-500.0,0.00012876,2]
[326996271,1715694644822,-500.0,0.00012876,2]
[326996272,1715694644832,-500.0,0.00012876,2]
[326996273,1715694644841,-500.0,0.00012876,2]
[326996274,1715694644851,-500.0,0.00012876,2]
[326996275,1715694644860,-500.0,0.00012876,2]
[326996276,1715694644870,-288.38,0.00012876,2]
[326996277,1715694644879,-272.7,0.00012876,2]
[326996278,1715694644888,-500.0,0.00012876,2]
[326996279,1715694644897,-500.0,0.00012876,2]
[326996280,1715694644907,-500.0,0.00012876,2]
[326996281,1715694644916,-500.0,0.00012876,2]
[326996282,1715694644927,-229.83,0.00012876,2]
[326996283,1715694644936,-552.31533622,0.00012876,2]
[326996284,1715694644945,-500.0,0.00012876,2]
[326996285,1715694644955,-500.0,0.00012876,2]
[326996286,1715694644964,-435.52,0.00012876,2]
[326996287,1715694644973,-500.0,0.00012876,2]
[326996288,1715694644983,-500.0,0.00012876,2]
[326996289,1715694644992,-500.0,0.00012876,2]
[326996290,1715694645001,-500.0,0.00012876,2]
[326996291,1715694645010,-500.0,0.00012876,2]
[326996292,1715694645019,-500.0,0.00012876,2]
[326996293,1715694645029,-500.0,0.00012876,2]
[326996294,1715694645039,-500.0,0.00012876,2]
[326996295,1715694645047,-500.0,0.00012876,2]
[326996296,1715694645057,-500.0,0.00012876,2]
[326996297,1715694645067,-500.0,0.00012876,2]